bitfinex-derivatives/quotes_ETHF0:USTF0_20240910
["timestamp","ask_amount","ask_price","bid_price","bid_amount"]
[1726002734353,0.4193,2384.8,2384.7,40.8]
[1726002734652,1.46755,2384.8,2384.7,41.30048861]
[1726002734857,2.5158,2384.8,2384.7,41.30048861]
[1726002735053,2.5158,2384.8,2384.3,0.3933]
[1726002735054,16.24120659,2384.8,2384.3,1.09857649]
[1726002735253,16.24120659,2384.8,2384.1,1.09857649]
[1726002735254,0.4194,2384.2,2384.1,1.09857649]
[1726002735454,0.4194,2384.2,2384.1,41.89857649]
[1726002735766,0.4194,2384.2,2384.1,43.40857649]
[1726002736275,1.5144398,2384.2,2384.1,43.40857649]
[1726002736560,0.4194,2384.2,2384.1,43.40857649]
[1726002737361,0.4194,2384.2,2384.1,42.31]
[1726002741468,0.4194,2384.2,2384.1,40.8]
[1726002741964,0.41942,2384.1,2384.0,1.09857649]
[1726002742468,4.61382,2384.1,2384.0,41.89857649]
[1726002742764,5.66238,2384.1,2384.0,41.89857649]
[1726002742970,5.66238,2384.1,2384.0,1.09857649]
[1726002745261,6.71094,2384.1,2384.0,1.09857649]
[1726002745767,5.66238,2384.1,2384.0,1.09857649]
[1726002746158,1.46798,2384.1,2384.0,1.09857649]
[1726002748675,0.41945,2383.9,2383.8,40.8]
[1726002749173,1.46809,2383.9,2383.8,40.8]
[1726002749369,1.83819,2383.9,2383.8,40.8]
[1726002750471,7.54339,2383.9,2383.8,40.8]
[1726002750667,7.54339,2383.9,2382.9,1.40657649]
[1726002750668,1.04869,2383.8,2382.9,1.40657649]
[1726002750866,0.41953,2383.5,2383.3,0.3695]
[1726002751061,0.41952,2383.6,2383.4,41.5363]
[1726002751262,4.03729048,2383.8,2383.5,1.51]
[1726002751263,0.4195,2383.7,2383.5,1.51]
[1726002751764,0.41951,2383.6,2383.5,1.51]
[1726002752168,0.41949,2383.7,2383.5,5.7052]
[1726002752375,0.41951,2383.6,2383.5,1.51]
[1726002752769,0.4195,2383.7,2383.5,5.7052]
[1726002752971,0.4195,2383.7,2383.5,1.51]
[1726002753176,0.41951,2383.6,2383.5,1.51]
[1726002753479,1.04866,2383.9,2383.5,1.51]
[1726002753779,0.41951,2383.6,2383.5,1.51]
[1726002754182,0.41951,2383.6,2383.5,5.7052]
[1726002756175,0.41953,2383.5,2383.4,41.5363]
[1726002757168,0.41953,2383.5,2383.4,0.7363]
[1726002757369,1.46835,2383.5,2383.4,0.7363]
[1726002759572,1.46835,2383.5,2383.4,0.3697]
[1726002759976,1.4684,2383.4,2383.3,40.8]
[1726002760183,1.46847,2383.3,2383.2,0.7752]
[1726002760382,1.46847,2383.3,2383.2,0.3893]
[1726002761473,0.41958,2383.2,2383.1,41.1719]
[1726002761670,1.46853,2383.2,2383.1,41.1719]
[1726002761875,2.97853,2383.2,2383.1,41.1719]
[1726002762176,1.46853,2383.2,2383.1,41.1719]
[1726002762378,2.51748,2383.2,2383.1,40.8]
[1726002762779,1.4686,2383.1,2383.0,0.3801]
[1726002762971,1.8459,2383.1,2383.0,0.3801]
[1726002763378,1.8459,2383.1,2383.0,41.1801]
[1726002763780,1.8459,2383.1,2383.0,41.5809]
[1726002764082,1.4686,2383.1,2383.0,41.5809]
[1726002765081,1.04908,2382.9,2382.3,3.578]
[1726002765281,0.4197,2382.6,2382.4,1.1634]
[1726002765580,0.4197,2382.6,2382.5,40.8]
[1726002765886,1.04915,2382.8,2382.5,40.8]
[1726002765887,0.41968,2382.7,2382.5,40.8]
[1726002766183,0.41968,2382.6,2382.5,40.8]
[1726002768678,0.41968,2382.6,2382.4,1.1634]
[1726002768882,0.4197,2382.5,2382.4,1.1634]
[1726002769076,3.6897,2382.5,2382.4,1.1634]
[1726002769276,3.6897,2382.5,2381.6,40.8]
[1726002769277,0.41974,2382.3,2381.6,40.8]
[1726002769482,3.368,2382.5,2381.6,41.5487]
[1726002769687,0.41974,2382.3,2381.7,0.41983]
[1726002770485,0.41976,2382.2,2381.7,0.41983]
[1726002771182,0.41977,2382.2,2381.7,0.41983]
[1726002771576,0.41978,2382.1,2381.7,0.41984]
[1726002771771,0.41976,2382.2,2381.7,0.41984]
[1726002772488,0.41976,2382.2,2381.8,0.399]
[1726002773084,0.41977,2382.1,2381.8,0.399]
[1726002774383,0.41977,2382.2,2381.8,0.81882]
[1726002774586,0.41974,2382.3,2381.8,3.669]
[1726002774889,0.41973,2382.4,2381.8,3.669]
[1726002775088,0.41973,2382.4,2382.0,0.41978]
[1726002775388,0.41974,2382.3,2382.1,0.3801]
[1726002775584,0.41974,2382.3,2382.2,0.7921]
[1726002776596,4.31921,2382.7,2382.2,0.7921]
[1726002776883,0.41974,2382.3,2382.2,0.7921]
[1726002778778,3.27,2382.7,2382.2,0.7921]
[1726002778975,1.04917,2382.7,2382.2,1.21185]
[1726002779190,0.41971,2382.5,2382.2,1.21185]
[1726002779381,1.04917,2382.7,2382.2,1.21185]
[1726002779577,0.41972,2382.5,2382.2,1.21185]
[1726002781089,0.41972,2382.4,2382.2,1.21185]
[1726002781685,0.41972,2382.4,2382.2,5.40945]
[1726002786191,0.41972,2382.4,2382.2,6.91945]
[1726002787192,0.41972,2382.4,2382.2,2.72185]
[1726002788886,0.41972,2382.4,2382.3,0.41974]
[1726002790594,0.41974,2382.3,2382.2,2.72185]
[1726002790889,0.41974,2382.3,2382.2,1.21185]
[1726002791192,0.41974,2382.3,2382.2,5.40945]
[1726002791986,0.41974,2382.3,2382.2,1.21185]
[1726002793191,0.41974,2382.3,2382.2,0.7921]
[1726002793488,0.41975,2382.2,2382.1,0.3801]
[1726002794889,0.41981,2381.9,2381.8,0.41982]
[1726002795097,0.41981,2381.9,2381.8,1.1445]
[1726002795496,0.41984,2381.7,2381.6,40.8]
[1726002795686,0.41984,2381.7,2381.6,41.547]
[1726002795892,0.41984,2381.7,2381.6,45.7454]
[1726002796296,0.41984,2381.7,2381.6,41.1791]
[1726002799100,1.4472,2382.0,2381.6,41.1791]
[1726002799495,0.41984,2381.7,2381.6,41.1791]
[1726002804299,0.41984,2381.7,2381.6,40.8]
[1726002805103,0.41988,2381.5,2381.3,0.41991]
[1726002805403,0.41988,2381.5,2381.3,0.81791]
[1726002805602,0.41988,2381.5,2381.4,40.8]
[1726002808300,1.46958,2381.5,2381.4,40.8]
[1726002813006,0.41988,2381.5,2381.4,40.8]
[1726002816305,2.97958,2381.5,2381.4,40.8]
[1726002816500,8.26968048,2381.5,2381.4,40.8]
[1726002817111,7.17878,2381.5,2381.4,40.8]
[1726002818504,0.41995,2381.1,2381.0,0.3821]
[1726002818706,0.41995,2381.1,2381.0,0.7514]
[1726002819005,1.92995,2381.1,2381.0,41.5514]
[1726002822808,1.18890048,2381.6,2381.0,43.0614]
[1726002823010,5.95335928,2381.7,2381.0,43.0614]
[1726002823011,0.41988,2381.5,2381.2,0.41992]
[1726002823215,0.41988,2381.5,2381.3,0.7652]
[1726002823406,1.92987,2381.6,2381.4,0.3853]
[1726002824410,1.92987,2381.6,2381.5,40.8]
[1726002825312,1.51,2381.6,2381.5,40.8]
[1726002825511,1.92986,2381.6,2381.5,40.8]
[1726002825713,1.51,2381.6,2381.5,40.8]
[1726002825899,0.2121482,2381.7,2381.5,0.41988]
[1726002825900,1.51,2381.7,2381.5,0.41988]
[1726002826300,1.92984,2381.7,2381.4,41.1853]
[1726002826512,1.92984,2381.7,2381.4,41.60519]
[1726002829108,1.9298,2382.0,2381.7,0.41983]
[1726002829311,0.41981,2381.9,2381.8,1.1553]
[1726002834610,0.41986,2381.6,2381.5,1.09857649]
[1726002834815,1.92986,2381.6,2381.5,0.7553]
[1726002836109,1.92986,2381.6,2381.5,1.1521]
[1726002838009,0.41986,2381.6,2381.5,1.1521]
[1726002839009,0.41988,2381.5,2381.4,40.8]
[1726002839517,1.51078048,2381.5,2381.4,41.1987]
[1726002840415,0.41988,2381.5,2381.4,41.1987]
[1726002840610,1.51078048,2381.5,2381.4,41.1987]
[1726002843111,0.41988,2381.5,2381.4,41.1987]
[1726002843508,1.51078048,2381.5,2381.4,41.1987]
[1726002844112,0.41988,2381.5,2381.4,41.1987]
[1726002844510,2.56048048,2381.5,2381.4,41.1987]
[1726002844916,3.11255082,2381.5,2381.4,41.1987]
[1726002845518,3.11255082,2381.5,2381.4,0.3987]
[1726002846617,3.51235082,2381.5,2381.4,0.3987]
[1726002849115,4.56205082,2381.5,2381.4,0.3987]
[1726002849423,1.4697,2381.3,2381.2,40.8]
[1726002849611,1.4697,2381.3,2381.2,0.3911]
[1726002849918,1.4697,2381.3,2381.1,0.3736]
[1726002849919,1.46976,2381.2,2381.1,0.3736]
[1726002850116,2.56394033,2381.2,2381.1,0.7624]
[1726002850316,0.41993,2381.2,2381.1,0.7624]
[1726002851324,0.41993,2381.2,2381.1,1.1297]
[1726002858930,1.51411033,2381.3,2381.1,1.54965]
[1726002859124,1.09418033,2381.4,2381.1,1.54964]
[1726002859321,0.41991,2381.3,2381.1,1.54964]
[1726002859624,0.41993,2381.2,2381.1,2.64821649]
[1726002860015,0.41993,2381.2,2381.1,6.84821649]
[1726002860423,1.09418033,2381.4,2381.2,0.41992]
[1726002860620,1.09418033,2381.5,2381.1,2.22827649]
[1726002860830,0.41991,2381.3,2381.2,0.41993]
[1726002861233,0.41991,2381.4,2381.3,0.41991]
[1726002861531,0.41991,2381.4,2381.2,0.41992]
[1726002862024,1.09418033,2381.5,2381.1,1.86097649]
[1726002862025,0.41991,2381.3,2381.1,1.86097649]
[1726002862725,0.41991,2381.3,2381.2,0.41993]
[1726002863125,0.41991,2381.4,2381.2,0.41993]
[1726002863526,0.41991,2381.3,2381.1,2.28091649]
[1726002863838,0.41991,2381.3,2381.1,1.86097649]
[1726002864339,0.41991,2381.3,2381.2,0.41993]
[1726002866534,0.41991,2381.3,2381.2,1.51850649]
[1726002866726,0.41991,2381.3,2381.2,0.41993]
[1726002866925,0.41991,2381.3,2381.2,1.51850649]
[1726002867231,0.41991,2381.3,2381.2,0.41993]
[1726002867526,0.41991,2381.3,2381.2,1.51850649]
[1726002867933,1.09418033,2381.5,2381.2,5.29777649]
[1726002868120,1.09418033,2381.5,2381.3,0.41991]
[1726002868323,1.09418033,2381.5,2381.4,0.4199]
[1726002868529,1.09418033,2381.5,2381.3,0.4199]
[1726002868829,1.09418033,2381.5,2381.4,0.4199]
[1726002869037,2.06283082,2381.6,2381.4,0.4199]
[1726002869038,1.51404033,2381.6,2381.4,0.4199]
[1726002869230,1.09418033,2381.6,2381.5,1.17588]
[1726002869439,1.64297082,2381.7,2381.5,1.17588]
[1726002869440,1.51404033,2381.7,2381.5,1.17588]
[1726002869932,0.41986,2381.6,2381.5,1.17588]
[1726002870122,1.51403033,2381.7,2381.5,1.17588]
[1726002871337,0.41986,2381.6,2381.5,0.756]
[1726002873434,0.41986,2381.6,2381.5,1.1513]
[1726002873627,0.41985,2381.7,2381.5,1.57117]
[1726002874637,0.41985,2381.7,2381.5,2.66974649]
[1726002874935,1.09418033,2381.8,2381.5,1.1513]
[1726002874936,0.41986,2381.6,2381.5,1.1513]
[1726002875737,0.41985,2381.7,2381.5,1.57118]
[1726002875930,1.09418033,2381.8,2381.5,1.1513]
[1726002876137,0.41984,2381.7,2381.5,2.66973649]
[1726002878236,1.51402033,2381.7,2381.5,2.66973649]
[1726002881646,0.41986,2381.6,2381.5,2.24987649]
[1726002881945,2.69255082,2381.8,2381.6,4.1992]
[1726002881946,1.51401033,2381.8,2381.6,4.1992]
[1726002882140,0.41983,2381.8,2381.6,1.52000545]
[1726002882341,0.41983,2381.8,2381.7,1.10014545]
[1726002882838,1.09418033,2381.9,2381.8,0.41982]
[1726002883045,5.61594033,2382.2,2382.0,0.41977]
[1726002883236,1.51394033,2382.2,2382.1,1.1205]
[1726002883437,0.41976,2382.2,2382.1,41.9205]
[1726002884037,0.41976,2382.2,2382.1,1.1205]
[1726002889442,0.41977,2382.1,2381.9,0.41979]
[1726002889846,0.41977,2382.2,2381.9,0.41979]
[1726002890139,0.41975,2382.2,2381.9,41.21979]
[1726002890347,0.41977,2382.1,2381.9,41.21979]
[1726002890649,0.41977,2382.2,2381.9,41.21979]
[1726002891838,0.41978,2382.1,2381.9,41.21979]
[1726002896847,0.41979,2382.0,2381.9,40.8]
[1726002898743,0.7913,2382.3,2381.9,41.2198]
[1726002898744,0.41978,2382.1,2381.9,41.2198]
[1726002901039,1.09418033,2382.4,2381.9,40.8]
[1726002901359,0.098,2382.6,2382.5,0.4197]
[1726002901643,4.102,2383.0,2382.9,0.41963]
[1726002901844,2.50107082,2383.3,2383.0,0.41961]
[1726002901845,1.87945033,2383.3,2383.0,0.41961]
[1726002902039,0.78527,2383.3,2383.1,41.5525]
[1726002902237,0.3657,2383.3,2383.1,41.5525]
[1726002902549,0.41955,2383.4,2383.1,41.5525]
[1726002904649,0.41956,2383.3,2383.1,41.5525]
[1726002905444,0.3817,2383.5,2383.1,41.5525]
[1726002905445,0.41956,2383.4,2383.1,41.5525]
[1726002907150,0.41958,2383.2,2383.1,41.5525]
[1726002907543,0.41957,2383.3,2383.1,41.5525]
[1726002907944,1.43055,2383.5,2383.1,41.5525]
[1726002908145,0.41957,2383.3,2383.1,41.5525]
[1726002909356,0.41958,2383.2,2383.1,41.5525]
[1726002911448,0.4196,2383.1,2382.8,0.4024]
[1726002911649,0.7691,2383.1,2382.8,0.82204]
[1726002911848,0.7691,2383.1,2382.9,41.1838]
[1726002912050,1.1887,2383.1,2382.9,41.1838]
[1726002912250,0.7691,2383.1,2382.9,41.1838]
[1726002912452,1.1887,2383.1,2382.9,41.1838]
[1726002912861,0.7691,2383.1,2382.9,41.1838]
[1726002913264,0.41959,2383.2,2382.9,41.60343]
[1726002913466,0.41959,2383.2,2383.0,0.3782]
[1726002913963,0.7523,2383.3,2383.0,0.3782]
[1726002913964,0.4196,2383.1,2383.0,0.3782]
[1726002914258,0.41959,2383.2,2383.0,0.3782]
[1726002918463,0.4196,2383.1,2383.0,0.3782]
[1726002919361,0.41959,2383.2,2383.0,0.3782]
[1726002919563,0.41958,2383.2,2383.0,0.3782]
[1726002919757,4.61558,2383.2,2383.0,0.3782]
[1726002919956,0.41967,2382.7,2382.6,0.3687]
[1726002920160,6.3752,2383.2,2382.3,0.3763]
[1726002920161,0.41971,2382.5,2382.3,0.3763]
[1726002920465,0.41968,2382.7,2382.4,40.8]
[1726002920769,0.41968,2382.7,2382.4,41.58842]
[1726002921865,0.41969,2382.6,2382.4,41.58842]
[1726002922670,1.04914,2382.8,2382.4,41.58842]
[1726002922671,0.4197,2382.5,2382.4,41.1687]
[1726002922868,1.04917,2382.7,2382.4,41.1687]
[1726002923164,0.41969,2382.6,2382.4,41.58841]
[1726002924676,0.4197,2382.5,2382.4,41.1687]
[1726002924967,0.4197,2382.5,2382.4,41.58842]
[1726002925169,0.4197,2382.6,2382.4,41.58842]
[1726002926876,0.4197,2382.5,2382.4,41.1687]
[1726002927067,0.41972,2382.4,2382.3,0.3763]
[1726002927267,0.41972,2382.4,2382.0,1.1466]
[1726002927268,0.41977,2382.1,2382.0,1.1466]
[1726002927467,0.41977,2382.2,2382.0,1.1466]
[1726002927665,0.41977,2382.2,2382.1,40.8]
[1726002939984,1.46916,2382.2,2382.1,40.8]
[1726002940483,5.66676,2382.2,2382.1,40.8]
[1726002940690,0.41982,2381.9,2381.6,1.58315]
[1726002940983,0.41982,2381.9,2381.7,0.41984]
[1726002941176,0.41982,2381.9,2381.8,40.8]
[1726002944583,1.46934,2381.9,2381.8,40.8]
[1726002956190,0.41982,2381.9,2381.8,40.8]
[1726002958483,1.46945,2381.7,2381.6,1.1633]
[1726002958878,5.66785,2381.7,2381.6,41.9633]
[1726002960080,1.46945,2381.7,2381.6,41.9633]
[1726002960280,1.46945,2381.7,2381.6,1.1633]
[1726002960488,0.41984,2381.7,2381.6,1.1633]
[1726002960986,0.41984,2381.7,2381.6,41.9633]
[1726002961578,1.04948,2382.0,2381.6,42.38315]
[1726002961786,0.41984,2381.8,2381.6,42.38315]
[1726002962180,0.41984,2381.7,2381.6,42.38315]
[1726002962886,1.04948,2382.0,2381.6,42.38315]
[1726002963390,0.41984,2381.7,2381.6,41.9633]
[1726002963685,0.41983,2381.8,2381.6,42.38316]
[1726002964484,0.41984,2381.7,2381.6,41.9633]
[1726002964782,2.60418033,2382.1,2381.7,0.41983]
[1726002964980,0.41981,2381.9,2381.7,0.41983]
[1726002965383,0.41982,2381.8,2381.6,42.38315]
[1726002969283,0.41982,2381.8,2381.6,41.9633]
[1726002969790,0.41984,2381.7,2381.6,41.9633]
[1726002970085,0.41984,2381.8,2381.6,42.38315]
[1726002970274,0.41981,2381.9,2381.7,0.41984]
[1726002970790,0.41982,2381.8,2381.6,43.48295153]
[1726002971584,1.09418033,2381.9,2381.6,43.06310153]
[1726002971585,1.92984,2381.7,2381.6,43.06310153]
[1726002971791,1.92984,2381.7,2381.6,41.9633]
[1726002971985,3.02402033,2381.7,2381.6,41.9633]
[1726002972985,3.02402033,2381.7,2381.3,1.64970229]
[1726002972986,0.41988,2381.5,2381.4,1.09980153]
[1726002973188,3.65315184,2381.6,2381.4,0.7671]
[1726002973385,1.51335184,2381.5,2381.4,41.5671]
[1726002976888,4.20265082,2381.6,2381.4,41.5671]
[1726002976889,1.09347184,2381.6,2381.4,41.5671]
[1726002977095,0.41987,2381.6,2381.4,43.08679153]
[1726002977488,0.41987,2381.6,2381.4,41.98699]
[1726002977994,0.41988,2381.5,2381.4,41.5671]
[1726002978585,0.41988,2381.5,2381.4,41.987]
[1726002978889,0.41988,2381.5,2381.4,43.08680153]
[1726002979089,0.41988,2381.5,2381.4,41.987]
[1726002979793,0.41988,2381.5,2381.4,43.08680153]
[1726002979990,0.41988,2381.5,2381.4,41.5671]
[1726002980301,0.41988,2381.5,2381.4,41.987]
[1726002980489,0.41987,2381.6,2381.5,0.41988]
[1726002980801,0.41986,2381.6,2381.5,0.41988]
[1726002981093,0.41986,2381.6,2381.4,43.08678153]
[1726002982281,0.41988,2381.5,2381.4,43.08678153]
[1726002982691,0.41988,2381.5,2381.4,47.28598153]
[1726002983197,0.41988,2381.5,2381.4,48.54743808]
[1726002983496,0.41987,2381.6,2381.4,48.54743808]
[1726002983700,0.41987,2381.6,2381.4,43.08678153]
[1726002983994,0.41988,2381.5,2381.4,43.08678153]
[1726002984395,0.41988,2381.5,2381.4,44.34851368]
[1726002984986,1.51334184,2381.6,2381.4,44.34851368]
[1726002985200,1.51334184,2381.6,2381.4,43.08678153]
[1726002986289,1.51334184,2381.6,2381.5,1.09980153]
[1726002986485,1.51334184,2381.6,2381.4,43.08678153]
[1726002986889,1.51334184,2381.6,2381.5,1.09980153]
[1726002994505,1.51334184,2381.6,2381.4,43.08678153]
[1726002994714,1.51334184,2381.6,2381.5,1.09980153]
[1726002997719,1.51333184,2381.6,2381.5,1.09980153]
[1726002998112,2.06283082,2381.6,2381.5,1.09980153]
[1726002998812,3.11249082,2381.6,2381.5,1.09980153]
[1726002999020,0.41988,2381.5,2381.4,1.86690153]
[1726002999225,1.51431388,2381.5,2381.4,1.86690153]
[1726003000825,1.51431388,2381.5,2381.4,3.12932214]
[1726003001024,1.09443388,2381.5,2381.4,3.54922214]
[1726003001225,1.09443388,2381.5,2381.4,3.5504363]
[1726003001519,1.09443388,2381.5,2381.4,2.44942061]
[1726003001720,1.51431388,2381.5,2381.4,2.02952061]
[1726003001925,1.51431388,2381.5,2381.4,3.13054826]
[1726003003224,1.51431388,2381.5,2381.4,3.55053312]
[1726003003423,1.51431388,2381.5,2381.4,4.09920776]
[1726003003932,1.51431388,2381.5,2381.4,3.67930776]
[1726003008232,1.51431388,2381.5,2381.4,2.44956629]
[1726003008424,1.51431388,2381.5,2381.4,3.67936858]
[1726003009532,1.51431388,2381.5,2381.4,3.13084705]
[1726003009723,1.51431388,2381.5,2381.4,4.09926858]
[1726003010127,1.51431388,2381.5,2381.4,3.67936858]
[1726003010428,1.51431388,2381.5,2381.4,2.02966629]
[1726003010735,1.51431388,2381.5,2381.4,3.13086096]
[1726003010921,2.56401388,2381.5,2381.4,3.13086096]
[1726003011129,1.51431388,2381.5,2381.4,2.02966629]
[1726003011429,1.51431388,2381.5,2381.4,4.09926858]
[1726003011635,1.51431388,2381.5,2381.4,3.67936858]
[1726003012029,1.51431388,2381.5,2381.4,2.44956629]
[1726003012225,1.51431388,2381.5,2381.4,4.09926858]
[1726003012631,1.51431388,2381.5,2381.4,3.67936858]
[1726003012830,1.51431388,2381.5,2381.4,4.09926858]
[1726003013038,1.51431388,2381.5,2381.4,3.67936858]
[1726003013333,1.51431388,2381.5,2381.4,3.67968993]
[1726003014229,2.06285082,2381.5,2381.4,3.67968993]
[1726003016433,2.06285082,2381.5,2381.4,4.09958993]
[1726003016637,2.06285082,2381.5,2381.4,3.67968993]
[1726003018131,3.11255082,2381.5,2381.4,3.67968993]
[1726003018336,3.11255082,2381.5,2381.4,3.68049374]
[1726003021242,8.36145082,2381.5,2381.4,2.91339374]
[1726003021541,8.36145082,2381.5,2381.2,1.10238141]
[1726003021542,2.51949,2381.3,2381.2,1.10238141]
[1726003021736,1.46976,2381.2,2381.1,1.10238141]
[1726003021939,3.76346,2381.2,2381.1,1.10238141]
[1726003022136,1.46983,2381.1,2381.0,1.10238141]
[1726003022345,3.49205109,2381.1,2381.0,1.10175615]
[1726003022536,0.41997,2381.0,2380.9,1.10175615]
[1726003022741,0.41997,2381.0,2380.7,1.10175615]
[1726003022742,1.05001,2380.8,2380.7,1.10175615]
[1726003023042,0.42002,2380.7,2380.6,1.10175615]
[1726003023246,0.42004,2380.6,2380.5,42.27744029]
[1726003024342,0.42004,2380.6,2380.5,41.1765]
[1726003025550,2.6033562,2380.9,2380.5,41.59655]
[1726003025735,0.42002,2380.7,2380.6,0.7861]
[1726003027548,0.42001,2380.8,2380.6,1.20614]
[1726003027751,0.42002,2380.7,2380.6,0.7861]
[1726003030949,1.93002,2380.7,2380.6,0.7861]
[1726003031648,0.42004,2380.6,2380.5,41.1765]
[1726003033048,0.42004,2380.6,2380.1,3.15970229]
[1726003033049,6.30109,2380.5,2380.0,0.05350029]
[1726003033247,6.30109,2380.5,2379.3,3.28300731]
[1726003033248,1.05036,2380.0,2379.3,0.308]
[1726003033450,0.42019,2379.8,2379.2,0.3929]
[1726003033657,0.42019,2379.8,2379.5,0.42023]
[1726003033945,1.51,2380.0,2379.6,0.7901]
[1726003034147,1.93015,2380.0,2379.7,0.80589]
[1726003034452,0.42016,2379.9,2379.7,0.3857]
[1726003035442,0.42018,2379.8,2379.7,0.3857]
[1726003035749,0.42017,2379.9,2379.7,0.3857]
[1726003036245,0.42017,2379.9,2379.7,4.5881]
[1726003036638,0.42018,2379.8,2379.7,4.5881]
[1726003036843,0.42018,2379.8,2379.7,0.3857]
[1726003037043,0.42017,2379.9,2379.7,5.00829]
[1726003037242,0.42017,2379.9,2379.7,0.80589]
[1726003037449,1.51,2380.0,2379.7,4.5881]
[1726003037757,0.42018,2379.9,2379.7,0.3857]
[1726003037945,0.42018,2379.9,2379.7,0.80589]
[1726003038146,0.42018,2379.9,2379.7,4.5881]
[1726003038541,0.42018,2379.8,2379.7,4.5881]
[1726003038750,0.42018,2379.8,2379.7,0.3857]
[1726003038951,0.42018,2379.8,2379.7,4.5881]
[1726003043556,0.42018,2379.8,2379.7,0.3857]
[1726003053659,0.42018,2379.8,2379.7,0.8059]
[1726003053858,0.42018,2379.8,2379.7,0.3857]
[1726003057762,0.42018,2379.8,2379.7,0.8059]
[1726003057965,0.42018,2379.8,2379.7,0.3857]
[1726003058367,0.42018,2379.8,2379.7,0.8059]
[1726003058563,0.42018,2379.8,2379.7,0.3857]
[1726003058763,0.42018,2379.8,2379.7,0.8059]
[1726003060672,0.42018,2379.8,2379.7,0.3857]
[1726003063070,0.42018,2379.8,2379.7,0.8059]
[1726003063266,0.42018,2379.8,2379.7,0.3857]
[1726003063762,0.42018,2379.8,2379.7,0.8059]
[1726003066675,0.42018,2379.8,2379.7,0.3857]
[1726003067472,0.79388,2379.8,2379.7,0.8059]
[1726003067676,0.42018,2379.8,2379.7,0.8059]
[1726003074576,0.42018,2379.8,2379.7,0.3857]
[1726003074577,1.47063,2379.8,2379.7,0.3857]
[1726003075583,1.47063,2379.8,2379.7,0.8059]
[1726003076794,2.55892221,2379.8,2379.7,0.3857]
[1726003078289,3.11215713,2379.8,2379.7,1.64560906]
[1726003078587,1.47063,2379.8,2379.7,1.64560906]
[1726003078778,3.11051836,2379.8,2379.7,1.64560906]
[1726003079382,3.11071725,2379.8,2379.7,3.29531135]
[1726003079582,1.47063,2379.8,2379.7,3.29531135]
[1726003079780,3.11068194,2379.8,2379.7,3.29531135]
[1726003079986,3.11067347,2379.8,2379.7,3.29531135]
[1726003080288,3.11065087,2379.8,2379.7,3.29531135]
[1726003080494,3.11062893,2379.8,2379.7,3.29531135]
[1726003080891,1.47063,2379.8,2379.7,3.29531135]
[1726003081089,1.47063,2379.8,2379.7,1.64560906]
[1726003081487,1.47063,2379.8,2379.7,3.29531135]
[1726003081488,3.11069425,2379.8,2379.7,3.29531135]
[1726003081694,3.11066105,2379.8,2379.7,3.29531135]
[1726003081896,3.1106441,2379.8,2379.7,3.29531135]
[1726003082090,1.47063,2379.8,2379.7,1.64560906]
[1726003082989,1.47063,2379.8,2379.7,3.29531135]
[1726003083190,3.11069655,2379.8,2379.7,3.29531135]
[1726003083385,1.47063,2379.8,2379.7,3.29531135]
[1726003083588,1.47063,2379.8,2379.7,1.64560906]
[1726003083984,1.47063,2379.8,2379.7,3.29531135]
[1726003084191,1.47063,2379.8,2379.7,1.64560906]
[1726003084802,1.47063,2379.8,2379.7,3.71551135]
[1726003085004,3.11069016,2379.8,2379.7,3.29531135]
[1726003085202,3.11069016,2379.8,2379.7,3.29479546]
[1726003086100,3.11069016,2379.8,2379.7,3.71499546]
[1726003086399,3.11069016,2379.8,2379.7,3.29479546]
[1726003089000,3.11069016,2379.8,2379.7,4.21396736]
[1726003090210,3.11069016,2379.8,2379.7,4.21350414]
[1726003091201,3.11069016,2379.8,2379.7,3.29433224]
[1726003091400,3.11069016,2379.8,2379.7,4.21350472]
[1726003092504,2.18883835,2380.2,2380.0,0.42014]
[1726003092697,1.64064444,2380.3,2380.2,1.47038]
[1726003093002,1.73864444,2380.8,2380.3,1.05023]
[1726003093200,4.102,2380.9,2380.8,0.42]
[1726003093201,1.64064444,2380.9,2380.8,0.42]
[1726003093397,1.64064444,2381.0,2380.9,0.41998]
[1726003093704,1.46989,2381.0,2380.9,0.49897248]
[1726003093903,1.46989,2381.0,2380.9,40.8]
[1726003093904,2.06061444,2381.0,2380.9,40.8]
[1726003094400,0.41997,2381.0,2380.9,40.8]
[1726003095604,1.04997,2380.9,2380.2,2.07050606]
[1726003095809,1.93007,2380.4,2380.3,0.49883202]
[1726003096011,1.93007,2380.4,2380.3,41.29883202]
[1726003096202,1.93007,2380.4,2380.3,40.8]
[1726003097512,1.51,2380.4,2380.3,40.8]
[1726003098210,1.93007,2380.4,2380.3,40.8]
[1726003098602,0.42011,2380.2,2380.1,0.7721]
[1726003098801,1.93011,2380.2,2380.1,0.7721]
[1726003099008,1.93011,2380.2,2380.1,41.5721]
[1726003099209,1.51,2380.2,2380.1,40.8]
[1726003101910,1.18799,2380.3,2380.1,40.8]
[1726003102210,0.79159,2380.3,2380.1,40.8]
[1726003102409,0.79159,2380.3,2380.2,0.3712]
[1726003103717,2.30159,2380.3,2380.2,0.3712]
[1726003104919,0.42011,2380.2,2380.1,40.8]
[1726003105210,1.93011,2380.2,2380.1,40.8]
[1726003105619,0.42015,2380.0,2379.7,0.79478]
[1726003105822,1.51,2379.9,2379.7,0.79478]
[1726003106012,1.51,2379.9,2379.8,0.3956]
[1726003106013,1.8995,2379.9,2379.8,0.3956]
[1726003106323,1.8995,2379.9,2379.8,41.1956]
[1726003110618,0.42015,2380.0,2379.8,41.61578]
[1726003111124,0.42015,2380.0,2379.8,41.98528]
[1726003112426,0.42016,2379.9,2379.8,41.5651]
[1726003113125,0.42015,2380.0,2379.8,41.98528]
[1726003113718,1.93014,2380.1,2379.9,0.42016]
[1726003114027,0.42012,2380.2,2380.0,0.42014]